fUST/lending_fUST_20250502
["ID","MTS","AMOUNT","RATE_DAILY","PERIOD"]
[359569180,1746129048512,-160.0,0.00024651,7]
[359569181,1746129048521,-160.0,0.00024651,7]
[359569182,1746129048531,-437.357183,0.00024651,7]
[359569183,1746129048540,-437.357183,0.00024651,7]
[359569184,1746129048549,-409.442662,0.00024651,7]
[359569185,1746129048559,-409.442662,0.00024651,7]
[359569186,1746129048568,-841.10298755,0.00024651,7]
[359569187,1746129048577,-151.0,0.00024651,7]
[359569188,1746129048587,-4678.53092,0.00024651,2]
[359569189,1746129048597,-4678.53092,0.00024651,2]
[359569190,1746129048606,-219.760607,0.00024651,7]
[359569191,1746129048616,-219.760607,0.00024651,7]
[359569192,1746129048625,-182.07995741,0.00024651,7]
[359569193,1746129048634,-180.60734,0.00024651,7]
[359569194,1746129048644,-160.0,0.00024651,7]
[359569195,1746129048653,-180.60734,0.00024651,7]
[359569196,1746129048662,-151.0,0.00024651,7]
[359569197,1746129048671,-283.908572,0.00024651,7]
[359569198,1746129048680,-160.0,0.00024651,7]
[359569199,1746129048692,-421.4777418,0.00024651,7]
[359569200,1746129048702,-160.0,0.00024651,7]
[359569201,1746129048711,-160.0,0.00024651,7]
[359569202,1746129048720,-151.0,0.00024658,7]
[359569203,1746129048731,-151.0,0.00024658,7]
[359569204,1746129048740,-151.0,0.00024658,7]
[359569205,1746129048751,-151.0,0.00024658,7]
[359569206,1746129048762,-151.0,0.00024658,7]
[359569207,1746129048772,-151.0,0.00024658,7]
[359569208,1746129048781,-500.0,0.00024673,2]
[359569209,1746129048791,-500.0,0.00024673,2]
[359569210,1746129048801,-501.12682132,0.00024673,2]
[359569211,1746129048810,-500.0,0.00024673,2]
[359569212,1746129048820,-212.5391221,0.00024673,2]
[359569213,1746129048830,-500.0,0.00024673,2]
[359569214,1746129048839,-500.0,0.00024673,2]
[359569215,1746129048848,-501.05854735,0.00024673,2]
[359569216,1746129048858,-606.60952904,0.00024673,2]
[359569217,1746129048867,-500.0,0.00024673,2]
[359569218,1746129048877,-500.0,0.00024673,2]
[359569219,1746129048886,-500.0,0.00024673,2]
[359569220,1746129048895,-500.0,0.00024673,2]
[359569221,1746129048905,-589.29419478,0.00024673,2]
[359569222,1746129048915,-1060.830763,0.00024673,7]
[359569223,1746129048925,-1060.830763,0.00024673,7]
[359569224,1746129048935,-164.858528,0.00024673,7]
[359569225,1746129048945,-151.0,0.00024673,7]
[359569226,1746129048954,-164.858528,0.00024673,7]
[359569227,1746129048964,-462.737373,0.00024673,7]
[359569228,1746129048974,-462.737373,0.00024673,7]
[359569229,1746129048984,-160.0,0.00024699,2]
[359569230,1746129048993,-406.8437366,0.00024699,2]
[359569231,1746129049004,-59603.06142164,0.000247,2]
[359569232,1746129049014,-74918.14448326,0.000247,2]
[359569233,1746129063114,164.68320876,0.00018026,7]
[359569235,1746129138241,1000.0,0.00018026,2]
[359569236,1746129147251,927.73778328,0.00018091,2]
[359569238,1746129276475,1000.0,0.00018081,2]
[359569239,1746129346432,1026.11555568,0.0001809,2]
[359569240,1746129355225,6025.7654515,0.00018,2]
[359569242,1746129408143,1000.0,0.00018081,2]
[359569243,1746129418835,927.91919395,0.00018088,2]
[359569244,1746129518209,1000.0,0.00018081,2]
[359569246,1746129655873,1000.0,0.00018081,2]
[359569247,1746129682491,189.159296,0.00017289,2]
[359569248,1746129689503,820.89244452,0.00018085,2]
[359569249,1746129695607,811.92929468,0.00018085,2]
[359569250,1746129701403,12805.4904666,0.00017289,2]
[359569252,1746129793451,1000.0,0.00018076,2]
[359569254,1746129931783,1000.0,0.00018076,2]
[359569256,1746129965830,710.43813281,0.00018084,2]
[359569258,1746130030573,656.71395564,0.00018082,2]
[359569259,1746130048203,1000.0,0.00018076,2]
[359569261,1746130143865,453.0139531,0.00017266,2]
[359569262,1746130185459,1000.0,0.00018076,2]
[359569279,1746130232016,-300.0,0.0001817,2]
[359569281,1746130232027,-1200.0,0.0001817,2]
[359569283,1746130232037,-300.0,0.0001817,2]
[359569285,1746130232047,-2522.65,0.00018171,3]
[359569287,1746130232057,-1261.32,0.00018171,3]
[359569289,1746130232067,-630.66,0.00018171,3]
[359569291,1746130232077,-315.33,0.00018171,3]
[359569293,1746130232088,-157.67,0.00018171,3]
[359569295,1746130232098,-473.03,0.00018171,3]
[359569297,1746130232107,-3647.40008219,0.00018181,2]
[359569300,1746130232128,-4118.12976652,0.00018181,2]
[359569327,1746130237958,-24778.72548711,0.00018181,2]
[359569329,1746130237968,-500.0,0.00018181,2]
[359569330,1746130237978,-500.0,0.00018181,2]
[359569331,1746130237987,-500.0,0.00018181,2]
[359569332,1746130237998,-500.0,0.00018181,2]
[359569333,1746130238007,-500.0,0.00018181,2]
[359569334,1746130238027,-500.0,0.00018181,2]
[359569335,1746130238038,-500.0,0.00018181,2]
[359569336,1746130238049,-500.0,0.00018181,2]
[359569337,1746130238059,-500.0,0.00018181,2]
[359569338,1746130238069,-500.0,0.00018181,2]
[359569339,1746130238080,-500.0,0.00018181,2]
[359569340,1746130238090,-500.0,0.00018181,2]
[359569341,1746130238100,-500.0,0.00018181,2]
[359569343,1746130238110,-500.0,0.00018181,2]
[359569345,1746130238121,-500.0,0.00018181,2]
[359569348,1746130238131,-500.0,0.00018181,2]
[359569350,1746130238141,-500.0,0.00018181,2]
[359569354,1746130238152,-500.0,0.00018181,2]
[359569357,1746130238162,-500.0,0.00018181,2]
[359569359,1746130238172,-500.0,0.00018181,2]
[359569360,1746130238181,-500.0,0.00018181,2]
[359569361,1746130238191,-500.0,0.00018181,2]
[359569362,1746130238202,-500.0,0.00018181,2]
[359569363,1746130238211,-500.0,0.00018181,2]
[359569364,1746130238222,-500.0,0.00018181,2]
[359569365,1746130238232,-500.0,0.00018181,2]
[359569366,1746130238242,-500.0,0.00018181,2]
[359569367,1746130238255,-500.0,0.00018181,2]
[359569368,1746130238266,-500.0,0.00018181,2]
[359569369,1746130238276,-208.71141066,0.00018181,2]
[359569370,1746130238287,-500.0,0.00018181,2]
[359569371,1746130238297,-500.0,0.00018181,2]
[359569372,1746130238308,-500.0,0.00018181,2]
[359569373,1746130238318,-500.0,0.00018181,2]
[359569374,1746130238329,-500.0,0.00018181,2]
[359569375,1746130238339,-500.0,0.00018181,2]
[359569376,1746130238348,-500.0,0.00018181,2]
[359569377,1746130238358,-500.0,0.00018181,2]
[359569378,1746130238367,-500.0,0.00018181,2]
[359569379,1746130238376,-500.0,0.00018181,2]
[359569380,1746130238387,-500.0,0.00018181,2]
[359569381,1746130238397,-500.0,0.00018181,2]
[359569382,1746130238407,-500.0,0.00018181,2]
[359569383,1746130238417,-500.0,0.00018181,2]
[359569384,1746130238427,-500.0,0.00018181,2]
[359569385,1746130238436,-500.0,0.00018181,2]
[359569386,1746130238445,-500.0,0.00018181,2]
[359569387,1746130238455,-500.0,0.00018181,2]
[359569388,1746130238465,-500.0,0.00018181,2]
[359569389,1746130238474,-3852.37388948,0.00018181,2]
[359569390,1746130238483,-3852.37388948,0.00018181,2]
[359569391,1746130238492,-3852.37388948,0.00018181,2]
[359569392,1746130238501,-3852.37388948,0.00018181,2]
[359569393,1746130238511,-3852.37388948,0.00018181,2]
[359569394,1746130238520,-3852.37388948,0.00018181,2]
[359569395,1746130238529,-3852.37388948,0.00018181,2]
[359569396,1746130238539,-3852.37388948,0.00018181,2]
[359569397,1746130238548,-3852.37388948,0.00018181,2]
[359569398,1746130238558,-3852.37388948,0.00018181,2]
[359569399,1746130238567,-3852.37388948,0.00018181,2]
[359569400,1746130238577,-3852.37388948,0.00018181,2]
[359569401,1746130238586,-3852.37388948,0.00018181,2]
[359569402,1746130238595,-3852.37388948,0.00018181,2]
[359569403,1746130238604,-3852.37388948,0.00018181,2]
[359569404,1746130238614,-3852.37388948,0.00018181,2]
[359569405,1746130238623,-3852.37388948,0.00018181,2]
[359569406,1746130238637,-3852.37388948,0.00018181,2]
[359569407,1746130238767,-3852.37388948,0.00018181,2]
[359569408,1746130238776,-3852.37388948,0.00018181,2]
[359569409,1746130238786,-3852.37388948,0.00018181,2]
[359569410,1746130238796,-3852.37388948,0.00018181,2]
[359569411,1746130238806,-3852.37388948,0.00018181,2]
[359569412,1746130238815,-3852.37388948,0.00018181,2]
[359569413,1746130238825,-3852.37388948,0.00018181,2]
[359569414,1746130238835,-3852.37388948,0.00018181,2]
[359569415,1746130238845,-3852.37388948,0.00018181,2]
[359569416,1746130238855,-3852.37388948,0.00018181,2]
[359569417,1746130238864,-3852.37388948,0.00018181,2]
[359569418,1746130238873,-3852.37388948,0.00018181,2]
[359569419,1746130238883,-3852.37388948,0.00018181,2]
[359569420,1746130238893,-3852.37388948,0.00018181,2]
[359569421,1746130238902,-3852.37388948,0.00018181,2]
[359569422,1746130238911,-3911.82410382,0.00018181,2]
[359569423,1746130238921,-3911.82410382,0.00018181,2]
[359569424,1746130238930,-3911.82410382,0.00018181,2]
[359569425,1746130238939,-3911.82410382,0.00018181,2]
[359569426,1746130238948,-3911.82410382,0.00018181,2]
[359569427,1746130238956,-3911.82410382,0.00018181,2]
[359569428,1746130238966,-3911.82410382,0.00018181,2]
[359569429,1746130238975,-3911.82410382,0.00018181,2]
[359569430,1746130238983,-3911.82410382,0.00018181,2]
[359569431,1746130238991,-151.0,0.000182,2]
[359569432,1746130239001,-152.0,0.00018488,2]
[359569433,1746130239011,-151.0,0.00018585,2]
[359569434,1746130239021,-698.63188306,0.000189,2]
[359569435,1746130239031,-193.0,0.00018904,2]
[359569436,1746130239040,-195.368983,0.00019178,2]
[359569437,1746130239050,-151.0,0.00019329,2]
[359569438,1746130239060,-246.0,0.00019329,2]
[359569439,1746130239070,-5045.3,0.00019541,3]
[359569440,1746130239080,-2522.64,0.00019541,3]
[359569441,1746130239089,-1261.32,0.00019541,3]
[359569442,1746130239099,-630.66,0.00019541,3]
[359569443,1746130239110,-315.34,0.00019541,3]
[359569444,1746130239119,-12595.7684382,0.00019547,3]
[359569445,1746130239129,-160.0,0.00019547,3]
[359569446,1746130239139,-841.10298755,0.00019547,3]
[359569447,1746130239148,-151.0,0.00019557,2]
[359569448,1746130239158,-656.7139556,0.00019687,2]
[359569449,1746130239167,-239.0,0.00019764,2]
[359569450,1746130239177,-420.0,0.00019822,2]
[359569451,1746130239187,-151.0,0.00019904,2]
[359569452,1746130239196,-991.0,0.00019919,2]
[359569453,1746130239206,-151.0,0.00019954,2]
[359569454,1746130239215,-163.68406202,0.00019959,2]
[359569455,1746130239226,-160.0,0.0002,3]
[359569456,1746130239236,-160.0,0.0002,3]
[359569457,1746130239247,-8483.72254992,0.0002023,2]
[359569458,1746130239261,-3112.7,0.00020337,2]
[359569459,1746130239272,-3112.7,0.00020337,2]
[359569460,1746130239281,-3112.7,0.00020337,2]
[359569461,1746130239292,-3112.7,0.00020337,2]
[359569462,1746130239305,-151.0,0.000207,3]
[359569463,1746130239315,-157.56,0.00021,2]
[359569464,1746130239325,-656.7139556,0.00021291,2]
[359569465,1746130239337,-151.0,0.00021323,2]
[359569466,1746130239347,-151.0,0.000214,3]
[359569467,1746130239356,-587.0,0.00021624,2]
[359569468,1746130239366,-160.0,0.00021917,2]
[359569469,1746130239375,-151.0,0.00022,10]
[359569470,1746130239385,-151.0,0.00022692,2]
[359569471,1746130239394,-151.0,0.000227,6]
[359569472,1746130239403,-151.0,0.000228,5]
[359569473,1746130239411,-500.0,0.00022812,2]
[359569474,1746130239420,-656.7139556,0.00022896,2]
[359569475,1746130239429,-40000.0,0.000229,2]
[359569476,1746130239439,-1434.5139088,0.000229,2]
[359569477,1746130239448,-151.0,0.00023,8]
[359569478,1746130239456,-421.4777418,0.00023,3]
[359569479,1746130239466,-160.0,0.00023,3]
[359569480,1746130239475,-160.0,0.00023,3]
[359569481,1746130239484,-160.0,0.00023,3]
[359569482,1746130239494,-160.0,0.00023,3]
[359569483,1746130239503,-151.0,0.000232,6]
[359569484,1746130239512,-160.0,0.00023287,2]
[359569485,1746130239520,-151.0,0.000233,8]
[359569486,1746130239531,-362.0172928,0.0002337,2]
[359569487,1746130239540,-362.0172928,0.0002337,2]
[359569488,1746130239549,-362.0172928,0.0002337,2]
[359569489,1746130239559,-151.0,0.000234,5]
[359569490,1746130239568,-409.49628362,0.0002353,2]
[359569491,1746130239578,-151.0,0.00023583,2]
[359569492,1746130239587,-207.4,0.00023583,2]
[359569493,1746130239596,-151.0,0.000236,10]
[359569494,1746130239606,-409.49628362,0.00023626,2]
[359569495,1746130239615,-151.0,0.000237,10]
[359569496,1746130239625,-5814.44707737,0.000237,3]
[359569499,1746130240488,-500.0,0.0001818,2]
[359569500,1746130240499,-217.24759766,0.0001818,2]
[359569501,1746130240509,-500.0,0.0001818,2]
[359569502,1746130240518,-430.9877215,0.0001818,2]
[359569503,1746130240527,-500.0,0.00021918,2]
[359569504,1746130240537,-274.46547754,0.00021918,2]
[359569505,1746130240546,-500.0,0.00021918,2]
[359569506,1746130240555,-500.0,0.00021918,2]
[359569507,1746130240564,-1452.41419771,0.000237,3]
[359569510,1746130240581,-1000.9806409,0.000237,3]
[359569511,1746130240593,-662.51547996,0.000237,3]
[359569522,1746130246118,-362.0172928,0.0002337,2]
[359569523,1746130246130,-2631.46321155,0.000237,3]
[359569524,1746130246140,-151.0,0.000238,10]
[359569525,1746130246151,-2793.55079365,0.000238,2]
[359569526,1746130324166,1000.0,0.0001807,2]
[359569527,1746130386677,1946.21117685,0.000181,2]
[359569529,1746130440561,1000.0,0.0001807,2]
[359569573,1746130578336,1000.0,0.00018078,2]
[359569578,1746130715848,1000.0,0.00018077,2]
[359569579,1746130728619,12625.90249752,0.00018077,2]
[359569580,1746130766459,189.1592968,0.00017234,2]
[359569595,1746130833072,723.2634206,0.00018077,2]
[359569605,1746130848286,1000.0,0.00018076,2]
[359569718,1746130964714,1000.0,0.00018076,2]
[359569741,1746131046442,464.2868138,0.00017195,2]
[359569742,1746131056447,1203.98051347,0.00018075,2]
[359569743,1746131099261,632.85549299,0.00018074,2]
[359569744,1746131102193,1000.0,0.00018067,2]
[359569768,1746131239772,1000.0,0.00018067,2]
[359569789,1746131272373,452.27301572,0.00018,2]
[359569790,1746131320243,189.88175553,0.00025,30]
[359569792,1746131324057,2080.109833,0.0002,120]
[359569795,1746131365610,553.74855641,0.00018072,2]
[359569796,1746131378353,1000.0,0.00018062,2]
[359569797,1746131397760,963.18441076,0.00018072,2]
[359569818,1746131432107,-300.0,0.00018161,2]
[359569819,1746131432117,-1200.0,0.00018161,2]
[359569820,1746131432127,-300.0,0.00018161,2]
[359569821,1746131432137,-814.6,0.00018162,3]
[359569822,1746131432147,-1221.91,0.00018162,3]
[359569823,1746131432156,-610.95,0.00018162,3]
[359569824,1746131432166,-305.48,0.00018162,3]
[359569825,1746131432176,-152.74,0.00018162,3]
[359569826,1746131432185,-458.22,0.00018162,3]
[359569827,1746131432195,-500.0,0.00018172,2]
[359569828,1746131432205,-185.30162724,0.00018172,2]
[359569829,1746131432215,-219.58313498,0.00018172,2]
[359569830,1746131432225,-468.32097385,0.00018172,2]
[359569831,1746131432234,-502.07331837,0.00018172,2]
[359569832,1746131432244,-691.93746806,0.00018172,2]
[359569833,1746131432253,-195.47423358,0.00018172,2]
[359569834,1746131432263,-691.93746806,0.00018172,2]
[359569835,1746131432272,-691.93746806,0.00018172,2]
[359569837,1746131432283,-691.93746806,0.00018172,2]
[359569839,1746131432293,-691.93746806,0.00018172,2]
[359569841,1746131432303,-691.93746806,0.00018172,2]
[359569844,1746131432313,-691.93746806,0.00018172,2]
[359569847,1746131432323,-691.93746806,0.00018172,2]
[359569850,1746131432333,-691.93746806,0.00018172,2]
[359569854,1746131432342,-691.93746806,0.00018172,2]
[359569856,1746131432352,-691.93746806,0.00018172,2]
[359569860,1746131432362,-691.93746806,0.00018172,2]
[359569862,1746131432372,-691.93746806,0.00018172,2]
[359569864,1746131432381,-691.93746806,0.00018172,2]
[359569866,1746131432391,-691.93746806,0.00018172,2]
[359569868,1746131432401,-691.93746806,0.00018172,2]
[359569869,1746131432411,-691.93746806,0.00018172,2]
[359569870,1746131432421,-691.93746806,0.00018172,2]
[359569871,1746131432431,-691.93746806,0.00018172,2]
[359569872,1746131432441,-691.93746806,0.00018172,2]
[359569873,1746131432450,-691.93746806,0.00018172,2]
[359569874,1746131432459,-691.93746806,0.00018172,2]
[359569875,1746131432470,-691.93746806,0.00018172,2]
[359569876,1746131432480,-691.93746806,0.00018172,2]
[359569877,1746131432490,-691.93746806,0.00018172,2]
[359569878,1746131432500,-349.18426016,0.00018172,2]
[359569879,1746131432524,-342.7532079,0.00018172,2]
[359569880,1746131432534,-691.93746806,0.00018172,2]
[359569881,1746131432544,-691.93746806,0.00018172,2]
[359569882,1746131432553,-537.65866978,0.00018172,2]
[359569883,1746131432646,-154.27879828,0.00018172,2]
[359569884,1746131432656,-691.93746806,0.00018172,2]
[359569885,1746131432667,-691.93746806,0.00018172,2]
[359569886,1746131432676,-691.93746806,0.00018172,2]
[359569887,1746131432686,-691.93746806,0.00018172,2]
[359569888,1746131432697,-691.93746806,0.00018172,2]
[359569889,1746131432707,-691.93746806,0.00018172,2]
[359569890,1746131432718,-256.9042559,0.00018172,2]
[359569891,1746131432730,-435.03321216,0.00018172,2]
[359569892,1746131432741,-691.93746806,0.00018172,2]
[359569893,1746131432751,-691.93746806,0.00018172,2]
[359569894,1746131432760,-691.93746806,0.00018172,2]
[359569895,1746131432771,-691.93746806,0.00018172,2]
[359569896,1746131432782,-691.93746806,0.00018172,2]
[359569897,1746131432792,-691.93746806,0.00018172,2]
[359569898,1746131432802,-691.93746806,0.00018172,2]
[359569899,1746131432813,-691.93746806,0.00018172,2]
[359569900,1746131432823,-691.93746806,0.00018172,2]
[359569901,1746131432835,-691.93746806,0.00018172,2]
[359569902,1746131432845,-691.93746806,0.00018172,2]
[359569903,1746131432855,-691.93746806,0.00018172,2]
[359569904,1746131432865,-691.93746806,0.00018172,2]
[359569905,1746131432875,-691.93746806,0.00018172,2]
[359569906,1746131432885,-691.93746806,0.00018172,2]
[359569907,1746131432895,-691.93746806,0.00018172,2]
[359569908,1746131432905,-691.93746806,0.00018172,2]
[359569909,1746131432916,-691.93746806,0.00018172,2]
[359569910,1746131432925,-691.93746806,0.00018172,2]
[359569911,1746131432935,-691.93746806,0.00018172,2]
[359569912,1746131432944,-691.93746806,0.00018172,2]
[359569913,1746131432954,-691.93746806,0.00018172,2]
[359569914,1746131432964,-4732.3528013,0.00018172,2]
[359569915,1746131432973,-4732.3528013,0.00018172,2]
[359569916,1746131432983,-4732.3528013,0.00018172,2]
[359569917,1746131432993,-4732.3528013,0.00018172,2]
[359569918,1746131433002,-4732.3528013,0.00018172,2]
[359569919,1746131433012,-4732.3528013,0.00018172,2]
[359569920,1746131433022,-4732.3528013,0.00018172,2]
[359569921,1746131433032,-4732.3528013,0.00018172,2]
[359569922,1746131433042,-4732.3528013,0.00018172,2]
[359569923,1746131433053,-4732.3528013,0.00018172,2]
[359569924,1746131433062,-4732.3528013,0.00018172,2]
[359569925,1746131433072,-4732.3528013,0.00018172,2]
[359569926,1746131433082,-4732.3528013,0.00018172,2]
[359569927,1746131433092,-4732.3528013,0.00018172,2]
[359569928,1746131433103,-4732.3528013,0.00018172,2]
[359569929,1746131433112,-4732.3528013,0.00018172,2]
[359569930,1746131433122,-4732.3528013,0.00018172,2]
[359569931,1746131433132,-4732.3528013,0.00018172,2]
[359569932,1746131433142,-4732.3528013,0.00018172,2]
[359569933,1746131433152,-4732.3528013,0.00018172,2]
[359569934,1746131433161,-4732.3528013,0.00018172,2]
[359569935,1746131433171,-4732.3528013,0.00018172,2]
[359569936,1746131433181,-4732.3528013,0.00018172,2]
[359569937,1746131433190,-4732.3528013,0.00018172,2]
[359569938,1746131433200,-4732.3528013,0.00018172,2]
[359569939,1746131433210,-4732.3528013,0.00018172,2]
[359569940,1746131433220,-4732.3528013,0.00018172,2]
[359569941,1746131433230,-4732.3528013,0.00018172,2]
[359569942,1746131433240,-4732.35280132,0.00018172,2]
[359569943,1746131433250,-4732.35280132,0.00018172,2]
[359569944,1746131433260,-35540.8817507,0.00018172,2]
[359569945,1746131433271,-500.0,0.00018177,2]
[359569946,1746131433282,-152.0,0.00018378,2]
[359569947,1746131433293,-500.0,0.00018451,2]
[359569948,1746131433303,-151.0,0.00018585,2]
[359569949,1746131433314,-193.0,0.00018792,2]
[359569950,1746131433325,-698.63188306,0.000189,2]
[359569951,1746131433336,-326.36236741,0.00019177,4]
[359569952,1746131433346,-195.368983,0.00019178,2]
[359569953,1746131433356,-246.0,0.00019215,2]
[359569954,1746131433365,-151.0,0.000193,2]
[359569955,1746131433376,-963.18441075,0.00019454,2]
[359569956,1746131433385,-1629.2,0.00019532,3]
[359569957,1746131433394,-2443.82,0.00019532,3]
[359569958,1746131433404,-1221.9,0.00019532,3]
[359569959,1746131433413,-610.96,0.00019532,3]
[359569960,1746131433423,-305.48,0.00019532,3]
[359569961,1746131433432,-239.0,0.00019647,2]
[359569962,1746131433442,-151.0,0.000198,2]
[359569963,1746131433452,-420.0,0.00019812,2]
[359569964,1746131433462,-151.0,0.00019904,2]
[359569965,1746131433472,-991.0,0.0001991,2]
[359569966,1746131433483,-151.0,0.00019954,2]
[359569967,1746131433493,-163.68406202,0.00019959,2]
[359569968,1746131433503,-1176.90700711,0.0002,2]
[359569969,1746131433514,-358.38724253,0.0002,2]
[359569970,1746131433524,-1181.14387494,0.0002,2]
[359569971,1746131433534,-10298.65884988,0.0002,2]
[359569972,1746131433544,-4794.33654578,0.0002,2]
[359569973,1746131433554,-151.0,0.000204,3]
[359569974,1746131433564,-553.74855635,0.00020603,2]
[359569975,1746131433574,-963.18441075,0.00020836,2]
[359569976,1746131433584,-151.0,0.000209,3]
[359569977,1746131433594,-157.56,0.00021,2]
[359569978,1746131433606,-266.94622411,0.00021,2]
[359569979,1746131433617,-174.16373671,0.0002122,2]
[359569980,1746131433628,-151.0,0.00021323,2]
[359569981,1746131433638,-151.0,0.000215,4]
[359569982,1746131433649,-428.0,0.00021614,2]
[359569983,1746131433659,-381.17562701,0.00021859,2]
[359569984,1746131433670,-160.0,0.00021917,2]
[359569985,1746131433680,-1304.0608909,0.00021918,7]
[359569986,1746131433691,-151.0,0.00022,9]
[359569987,1746131433703,-381.17562701,0.00022167,2]
[359569988,1746131433713,-963.18441075,0.00022218,2]
[359569989,1746131433954,-381.17562701,0.00022434,2]
[359569990,1746131433964,-151.0,0.000226,5]
[359569991,1746131433974,-250.0,0.00022656,2]
[359569992,1746131433984,-381.17562701,0.00022663,2]
[359569993,1746131433993,-151.0,0.00022692,2]
[359569994,1746131434003,-362.0172928,0.00022941,2]
[359569995,1746131434013,-381.17562701,0.00022973,2]
[359569996,1746131434023,-151.0,0.00023,7]
[359569997,1746131434033,-247.22811299,0.00023,2]
[359569998,1746131434043,-418.69159822,0.00023,2]
[359569999,1746131434052,-151.0,0.000231,10]
[359570000,1746131434062,-151.0,0.000231,5]
[359570001,1746131434072,-553.74855635,0.00023134,2]
[359570002,1746131434081,-151.0,0.000232,6]
[359570003,1746131434091,-160.0,0.00023287,2]
[359570004,1746131434101,-381.17562701,0.00023287,2]
[359570005,1746131434111,-381.17562706,0.00023288,2]
[359570006,1746131434121,-151.0,0.000234,10]
[359570007,1746131434131,-1434.5139088,0.000234,2]
[359570008,1746131434141,-29838.73173953,0.00023463,2]
[359570014,1746131438208,-362.62697731,0.00023463,2]
[359570015,1746131438220,-3693.11489242,0.00023463,2]
[359570016,1746131438263,-68296.06730592,0.00023463,2]
[359570017,1746131438274,-7720.41360883,0.00023499,3]
[359570018,1746131438286,-151.0,0.00023499,7]
[359570019,1746131438296,-253.718316,0.00023499,7]
[359570020,1746131438306,-151.0,0.00023499,7]
[359570021,1746131438316,-151.0,0.00023499,7]
[359570022,1746131438326,-954.747687,0.00023499,7]
[359570023,1746131438335,-954.747687,0.00023499,7]
[359570024,1746131438344,-156.936783,0.00023499,7]
[359570025,1746131438354,-151.0,0.00023499,7]
[359570026,1746131438364,-151.0,0.00023499,7]
[359570027,1746131438374,-151.0,0.00023499,7]
[359570028,1746131438383,-191.908048,0.00023499,7]
[359570029,1746131438393,-160.0,0.00023499,3]
[359570030,1746131438402,-160.0,0.00023499,3]
[359570031,1746131438412,-156242.1522524,0.00023499,2]
[359570032,1746131438422,-160.0,0.00023499,3]
[359570033,1746131438432,-12595.7684382,0.00023499,3]
[359570034,1746131438441,-160.0,0.00023499,3]
[359570035,1746131438451,-421.4777418,0.00023499,3]
[359570036,1746131438460,-160.0,0.00023499,3]
[359570037,1746131438470,-160.0,0.00023499,3]
[359570038,1746131438480,-841.10298755,0.00023499,3]
[359570039,1746131438490,-151.0,0.000235,7]
[359570040,1746131438500,-40800.34978634,0.000235,2]
[359570138,1746131446403,-292.155656,0.00023499,7]
[359570139,1746131446414,-3392.27942001,0.000235,2]
[359570140,1746131446424,-25081.85551674,0.000235,2]
[359570142,1746131446434,-75417.78908883,0.000235,2]
[359570143,1746131446459,-24582.21091117,0.000235,2]
[359570144,1746131446469,-151.0,0.000235,7]
[359570145,1746131446478,-151.0,0.000235,7]
[359570146,1746131446489,-368.498396,0.000235,7]
[359570147,1746131446499,-368.498396,0.000235,7]
[359570148,1746131446509,-547.371757,0.000235,7]
[359570149,1746131446518,-547.371757,0.000235,7]
[359570151,1746131446527,-153.358597,0.000235,7]
[359570152,1746131446537,-153.358597,0.000235,7]
[359570154,1746131446547,-153.358597,0.000235,7]
[359570155,1746131446556,-153.358597,0.000235,7]
[359570157,1746131446565,-151.0,0.000235,7]
[359570158,1746131446785,-151.0,0.000235,7]
[359570159,1746131446795,-151.0,0.000235,7]
[359570160,1746131446805,-151.0,0.000235,7]
[359570161,1746131446815,-151.0,0.000235,7]
[359570162,1746131446825,-151.0,0.000235,7]
[359570163,1746131446835,-264.094681,0.000235,7]
[359570164,1746131446845,-954.747687,0.000235,7]